[Event "*** Titled Tuesday 3|2 Blitz"]
[Site "Chess.com"]
[Date "2016.07.05"]
[Round "6"]
[White "goingin33"]
[Black "saraswathii"]
[Result "1-0"]
[WhiteElo "2176"]
[BlackElo "2072"]
[TimeControl "180+2"]
[EndTime "18:12:51 PDT"]
[Termination "goingin33 won by resignation"]

1. e4 {[%clk 0:03:01.9]} 1... c5 {[%clk 0:02:53.8]} 2. Nf3 {[%clk 0:03:02.7]}
2... e6 {[%clk 0:02:52.3]} 3. d4 {[%clk 0:03:03.5]} 3... cxd4 {[%clk 0:02:52.5]}
4. Nxd4 {[%clk 0:03:05.4]} 4... Nf6 {[%clk 0:02:52.8]} 5. Nc3 {[%clk 0:03:06.3]}
5... Nc6 {[%clk 0:02:52.7]} 6. Ndb5 {[%clk 0:03:06.1]} 6... Bb4 {[%clk
0:02:51.3]} 7. a3 {[%clk 0:03:06.4]} 7... Bxc3+ {[%clk 0:02:40.1]} 8. Nxc3
{[%clk 0:03:08.3]} 8... d5 {[%clk 0:02:40.4]} 9. exd5 {[%clk 0:03:10.2]} 9...
exd5 {[%clk 0:02:40.4]} 10. Bd3 {[%clk 0:03:11.7]} 10... d4 {[%clk 0:02:41]} 11.
Ne2 {[%clk 0:03:12.1]} 11... Bg4 {[%clk 0:02:30]} 12. f3 {[%clk 0:03:10]} 12...
Bh5 {[%clk 0:02:25.2]} 13. O-O {[%clk 0:03:10.9]} 13... O-O {[%clk 0:02:21.8]}
14. b4 {[%clk 0:03:10.3]} 14... Qd6 {[%clk 0:02:13.2]} 15. Qe1 {[%clk
0:03:09.9]} 15... Ne5 {[%clk 0:01:55.3]} 16. Qf2 {[%clk 0:03:02.8]} 16... Nxd3
{[%clk 0:01:54.1]} 17. cxd3 {[%clk 0:03:04.7]} 17... Bg6 {[%clk 0:01:54.5]} 18.
Rd1 {[%clk 0:03:04.3]} 18... Rfd8 {[%clk 0:01:51]} 19. Bb2 {[%clk 0:03:04.3]}
19... Qa6 {[%clk 0:01:38.4]} 20. Nf4 {[%clk 0:02:40.4]} 20... Qd6 {[%clk
0:01:14.2]} 21. Nxg6 {[%clk 0:02:40.9]} 21... hxg6 {[%clk 0:01:09.7]} 22. Rac1
{[%clk 0:02:42.8]} 22... b5 {[%clk 0:01:06]} 23. Rc5 {[%clk 0:02:35.6]} 23... a6
{[%clk 0:00:57.3]} 24. Rdc1 {[%clk 0:02:35]} 24... Rd7 {[%clk 0:00:52.3]} 25.
Rc8+ {[%clk 0:02:29.1]} 25... Rxc8 {[%clk 0:00:48.8]} 26. Rxc8+ {[%clk 0:02:31]}
26... Rd8 {[%clk 0:00:43.7]} 27. Rxd8+ {[%clk 0:02:31.6]} 27... Qxd8 {[%clk
0:00:44.1]} 28. Qxd4 {[%clk 0:02:27.5]} 28... Qxd4+ {[%clk 0:00:42.1]} 29. Bxd4
{[%clk 0:02:29.4]} 29... Nd5 {[%clk 0:00:42.3]} 30. Kf2 {[%clk 0:02:29.4]} 30...
Nf4 {[%clk 0:00:41.8]} 31. Ke3 {[%clk 0:02:26]} 31... Nxg2+ {[%clk 0:00:42.5]}
32. Ke4 {[%clk 0:02:27.9]} 32... f6 {[%clk 0:00:43]} 33. Kd5 {[%clk 0:02:28.7]}
33... Nf4+ {[%clk 0:00:43]} 34. Kc6 {[%clk 0:02:30]} 34... Nxd3 {[%clk
0:00:42.2]} 35. Kb6 {[%clk 0:02:30.4]} 35... Ne1 {[%clk 0:00:40.4]} 36. f4
{[%clk 0:02:28.1]} 36... Nc2 {[%clk 0:00:39.3]} 37. Bb2 {[%clk 0:02:28.9]} 37...
Ne1 {[%clk 0:00:20.1]} 38. Kxa6 {[%clk 0:02:18.8]} 38... Nd3 {[%clk 0:00:21]}
39. Bd4 {[%clk 0:02:20]} 39... Nxf4 {[%clk 0:00:17.7]} 40. Kxb5 {[%clk
0:02:19.7]} 40... Ne6 {[%clk 0:00:18.4]} 41. Bb6 {[%clk 0:02:20.6]} 1-0

[Event "*** Titled Tuesday 3|2 Blitz"]
[Site "Chess.com"]
[Date "2016.07.05"]
[Round "6"]
[White "dawtonlms"]
[Black "TyIerDurden"]
[Result "1/2-1/2"]
[WhiteElo "2186"]
[BlackElo "2447"]
[TimeControl "180+2"]
[EndTime "18:12:57 PDT"]
[Termination "Game drawn by repetition"]

1. e4 {[%clk 0:03:00.7]} 1... e6 {[%clk 0:02:59.3]} 2. d3 {[%clk 0:03:01.2]}
2... d5 {[%clk 0:02:59.7]} 3. Nd2 {[%clk 0:03:02.4]} 3... Nf6 {[%clk 0:03:00.4]}
4. Ngf3 {[%clk 0:03:00.9]} 4... c5 {[%clk 0:03:01.3]} 5. g3 {[%clk 0:03:02]}
5... Be7 {[%clk 0:03:01.1]} 6. Bg2 {[%clk 0:03:03.4]} 6... Nc6 {[%clk
0:03:01.7]} 7. O-O {[%clk 0:03:02.7]} 7... O-O {[%clk 0:03:02.9]} 8. Re1 {[%clk
0:02:58.3]} 8... b5 {[%clk 0:03:03.8]} 9. e5 {[%clk 0:02:58.8]} 9... Nd7 {[%clk
0:02:56.5]} 10. Nf1 {[%clk 0:02:59.8]} 10... Bb7 {[%clk 0:02:54.8]} 11. h4
{[%clk 0:02:59.4]} 11... Nb6 {[%clk 0:02:53.7]} 12. h5 {[%clk 0:02:59.8]} 12...
h6 {[%clk 0:02:52.7]} 13. N1h2 {[%clk 0:03:00.3]} 13... a5 {[%clk 0:02:49.9]}
14. Ng4 {[%clk 0:03:01.4]} 14... a4 {[%clk 0:02:47.8]} 15. a3 {[%clk 0:03:01.9]}
15... b4 {[%clk 0:02:36.4]} 16. Bf4 {[%clk 0:02:51.2]} 16... Re8 {[%clk
0:02:34.6]} 17. Qd2 {[%clk 0:02:51.7]} 17... Bf8 {[%clk 0:02:29.4]} 18. Nxh6+
{[%clk 0:02:51]} 18... gxh6 {[%clk 0:02:25]} 19. Bxh6 {[%clk 0:02:52.2]} 19...
Kh7 {[%clk 0:02:20.5]} 20. Bg5 {[%clk 0:02:52.8]} 20... Qc7 {[%clk 0:02:14.2]}
21. Bf6 {[%clk 0:02:50.1]} 21... Bh6 {[%clk 0:02:12.1]} 22. Ng5+ {[%clk
0:02:50.9]} 22... Bxg5 {[%clk 0:02:10.8]} 23. Qxg5 {[%clk 0:02:46.5]} 23... Rg8
{[%clk 0:02:04]} 24. Qh4 {[%clk 0:02:36.3]} 24... Nd7 {[%clk 0:01:56.3]} 25.
Be4+ {[%clk 0:01:27.4]} 25... dxe4 {[%clk 0:00:59.3]} 26. Qxe4+ {[%clk
0:01:29.3]} 26... Kh6 {[%clk 0:01:00.1]} 27. Qf4+ {[%clk 0:01:29]} 27... Kh7
{[%clk 0:01:00.9]} 28. Qe4+ {[%clk 0:01:30]} 28... Kh6 {[%clk 0:00:48.9]} 29.
Qf4+ {[%clk 0:01:08.4]} 29... Kh7 {[%clk 0:00:49.3]} 30. Qe4+ {[%clk 0:00:51.4]}
1/2-1/2

[Event "*** Titled Tuesday 3|2 Blitz"]
[Site "Chess.com"]
[Date "2016.07.05"]
[Round "6"]
[White "Sanan_Sjugirov"]
[Black "GeorgMeier"]
[Result "1-0"]
[WhiteElo "2673"]
[BlackElo "2648"]
[TimeControl "180+2"]
[EndTime "18:13:00 PDT"]
[Termination "Sanan_Sjugirov won by resignation"]

1. d4 {[%clk 0:03:01.9]} 1... e6 {[%clk 0:03:01]} 2. Nf3 {[%clk 0:03:02.9]} 2...
Nf6 {[%clk 0:03:02.4]} 3. Bg5 {[%clk 0:03:04]} 3... d5 {[%clk 0:03:02.1]} 4.
Nbd2 {[%clk 0:03:04.9]} 4... c5 {[%clk 0:03:03.5]} 5. e3 {[%clk 0:03:05.7]} 5...
Bd6 {[%clk 0:03:01.8]} 6. c3 {[%clk 0:03:04.7]} 6... h6 {[%clk 0:03:02.1]} 7.
Bh4 {[%clk 0:03:05.3]} 7... Nbd7 {[%clk 0:03:03.2]} 8. Bd3 {[%clk 0:03:04.8]}
8... O-O {[%clk 0:03:03.5]} 9. Qe2 {[%clk 0:03:03.6]} 9... b6 {[%clk 0:03:04.3]}
10. g4 {[%clk 0:02:59.8]} 10... g5 {[%clk 0:02:51.8]} 11. Bg3 {[%clk 0:03:00.4]}
11... Bxg3 {[%clk 0:02:44.7]} 12. hxg3 {[%clk 0:03:01.4]} 12... Nxg4 {[%clk
0:02:38]} 13. Ng1 {[%clk 0:02:49.2]} 13... f5 {[%clk 0:02:33.4]} 14. f3 {[%clk
0:02:46.1]} 14... Ngf6 {[%clk 0:02:34.4]} 15. Rxh6 {[%clk 0:02:46.7]} 15... Kg7
{[%clk 0:02:29.2]} 16. Rh2 {[%clk 0:02:45.7]} 16... g4 {[%clk 0:02:00]} 17.
O-O-O {[%clk 0:02:42.1]} 17... Rh8 {[%clk 0:01:52.4]} 18. Qf2 {[%clk 0:02:35.9]}
18... Rxh2 {[%clk 0:01:41.5]} 19. Qxh2 {[%clk 0:02:37.8]} 19... Qh8 {[%clk
0:01:43.2]} 20. Qf2 {[%clk 0:02:38.4]} 20... Nf8 {[%clk 0:01:30.8]} 21. Ne2
{[%clk 0:02:35.6]} 21... Ng6 {[%clk 0:01:29.8]} 22. Nf4 {[%clk 0:02:33]} 22...
Bd7 {[%clk 0:01:30.5]} 23. Nxg6 {[%clk 0:02:29.2]} 23... Kxg6 {[%clk 0:01:32.4]}
24. e4 {[%clk 0:02:28.8]} 24... cxd4 {[%clk 0:01:23.5]} 25. exf5+ {[%clk
0:02:24.4]} 25... exf5 {[%clk 0:01:24.5]} 26. Qxd4 {[%clk 0:02:24.4]} 26... Qh3
{[%clk 0:01:20.3]} 27. fxg4 {[%clk 0:02:20.1]} 27... Qxg4 {[%clk 0:01:20.6]} 28.
Qf2 {[%clk 0:02:12.9]} 28... Qg5 {[%clk 0:00:26.4]} 29. Kb1 {[%clk 0:02:07.1]}
29... Ng4 {[%clk 0:00:26]} 30. Qd4 {[%clk 0:01:58.7]} 30... Qe3 {[%clk
0:00:22.9]} 31. Qxg4+ {[%clk 0:01:58.8]} 1-0

[Event "*** Titled Tuesday 3|2 Blitz"]
[Site "Chess.com"]
[Date "2016.07.05"]
[Round "6"]
[White "pedromartinez91"]
[Black "IamSchrodingersCat"]
[Result "1-0"]
[WhiteElo "2320"]
[BlackElo "2226"]
[TimeControl "180+2"]
[EndTime "18:13:18 PDT"]
[Termination "pedromartinez91 won by resignation"]

1. b3 {[%clk 0:03:01.9]} 1... Nf6 {[%clk 0:03:00.5]} 2. Bb2 {[%clk 0:03:01.8]}
2... g6 {[%clk 0:03:02.4]} 3. Bxf6 {[%clk 0:03:01.4]} 3... exf6 {[%clk
0:03:04.3]} 4. c4 {[%clk 0:03:02.3]} 4... Bg7 {[%clk 0:03:05.5]} 5. Nc3 {[%clk
0:03:03.2]} 5... Nc6 {[%clk 0:03:06.5]} 6. g3 {[%clk 0:03:03.7]} 6... f5 {[%clk
0:03:06.5]} 7. Bg2 {[%clk 0:03:02.3]} 7... O-O {[%clk 0:03:06.6]} 8. Rc1 {[%clk
0:03:02.5]} 8... Re8 {[%clk 0:03:06.1]} 9. e3 {[%clk 0:02:57.9]} 9... Ne5 {[%clk
0:03:07.1]} 10. d4 {[%clk 0:02:54]} 10... Ng4 {[%clk 0:03:07.4]} 11. Nge2 {[%clk
0:02:53.9]} 11... h5 {[%clk 0:03:04.3]} 12. h3 {[%clk 0:02:22.4]} 12... Nf6
{[%clk 0:02:59.7]} 13. h4 {[%clk 0:02:03.4]} 13... d6 {[%clk 0:02:51.3]} 14. O-O
{[%clk 0:02:02.8]} 14... a5 {[%clk 0:02:47.8]} 15. Nf4 {[%clk 0:02:02.7]} 15...
c6 {[%clk 0:02:46.2]} 16. Re1 {[%clk 0:01:58.1]} 16... Qc7 {[%clk 0:02:42.1]}
17. Na4 {[%clk 0:01:53.6]} 17... Bd7 {[%clk 0:02:39.3]} 18. c5 {[%clk 0:01:54]}
18... d5 {[%clk 0:02:39.1]} 19. Nb6 {[%clk 0:01:54.9]} 19... Ra7 {[%clk
0:02:36.6]} 20. Qd2 {[%clk 0:01:54.2]} 20... Be6 {[%clk 0:02:29.7]} 21. a3
{[%clk 0:01:49.9]} 21... Nd7 {[%clk 0:02:20.5]} 22. Nxd7 {[%clk 0:01:47.7]}
22... Bxd7 {[%clk 0:02:22.4]} 23. Rc2 {[%clk 0:01:43.5]} 23... Raa8 {[%clk
0:02:13.2]} 24. Rb1 {[%clk 0:01:43.5]} 24... Ra7 {[%clk 0:02:12.9]} 25. Rcb2
{[%clk 0:01:44]} 25... Rea8 {[%clk 0:02:10.8]} 26. Kh2 {[%clk 0:01:41.4]} 26...
Bf6 {[%clk 0:02:07.7]} 27. Qe2 {[%clk 0:01:35]} 27... Kg7 {[%clk 0:02:05]} 28.
Bf3 {[%clk 0:01:32.9]} 28... Kf8 {[%clk 0:01:58.7]} 29. Rc1 {[%clk 0:01:31.8]}
29... Re8 {[%clk 0:01:46.7]} 30. Ra2 {[%clk 0:01:32.2]} 30... Rb8 {[%clk
0:01:35.7]} 31. Rca1 {[%clk 0:01:31.6]} 31... Rba8 {[%clk 0:01:36.2]} 32. b4
{[%clk 0:01:31.8]} 32... axb4 {[%clk 0:01:34.5]} 33. axb4 {[%clk 0:01:32.2]}
33... Qb8 {[%clk 0:01:35.2]} 34. Nd3 {[%clk 0:01:26.4]} 34... Rxa2 {[%clk
0:01:30.5]} 35. Rxa2 {[%clk 0:01:26.9]} 35... Ra7 {[%clk 0:01:32.1]} 36. Nc1
{[%clk 0:01:26]} 36... Qa8 {[%clk 0:01:26.5]} 37. b5 {[%clk 0:01:26.9]} 37...
Rxa2 {[%clk 0:01:22.3]} 38. Qxa2 {[%clk 0:01:26.9]} 38... Qxa2 {[%clk
0:01:21.6]} 39. Nxa2 {[%clk 0:01:28]} 39... Ke7 {[%clk 0:01:22.7]} 40. Nb4
{[%clk 0:01:27.6]} 40... Kd8 {[%clk 0:01:16.9]} 41. Kg2 {[%clk 0:01:26.5]} 41...
Kc7 {[%clk 0:01:15.9]} 42. bxc6 {[%clk 0:01:25.3]} 42... bxc6 {[%clk 0:01:15.6]}
43. Bxd5 {[%clk 0:01:25.7]} 43... Be6 {[%clk 0:01:11.7]} 44. Bxc6 {[%clk
0:01:23.5]} 44... Bc4 {[%clk 0:01:07.4]} 45. Bd5 {[%clk 0:01:23.7]} 1-0

[Event "*** Titled Tuesday 3|2 Blitz"]
[Site "Chess.com"]
[Date "2016.07.05"]
[Round "6"]
[White "Konavets"]
[Black "matein28"]
[Result "1-0"]
[WhiteElo "2518"]
[BlackElo "2390"]
[TimeControl "180+2"]
[EndTime "18:13:55 PDT"]
[Termination "Konavets won by resignation"]

1. b4 {[%clk 0:02:58.5]} 1... d5 {[%clk 0:03:00.9]} 2. Bb2 {[%clk 0:02:59.1]}
2... Nf6 {[%clk 0:03:02.4]} 3. e3 {[%clk 0:03:00]} 3... Bf5 {[%clk 0:03:03.5]}
4. a3 {[%clk 0:02:59.9]} 4... e6 {[%clk 0:03:05]} 5. d3 {[%clk 0:03:01.4]} 5...
c5 {[%clk 0:03:06.1]} 6. b5 {[%clk 0:02:58]} 6... Nbd7 {[%clk 0:03:03.8]} 7. Be2
{[%clk 0:02:58.9]} 7... Bd6 {[%clk 0:03:04.2]} 8. g4 {[%clk 0:02:58.3]} 8... Bg6
{[%clk 0:03:04.7]} 9. g5 {[%clk 0:02:59.7]} 9... Ng8 {[%clk 0:02:48.9]} 10. Bxg7
{[%clk 0:03:00.2]} 10... Be5 {[%clk 0:02:50.5]} 11. Bxh8 {[%clk 0:02:59.6]}
11... Bxh8 {[%clk 0:02:51.5]} 12. c3 {[%clk 0:03:00.9]} 12... Qxg5 {[%clk
0:02:52.8]} 13. Nf3 {[%clk 0:03:02.2]} 13... Qh6 {[%clk 0:02:51.8]} 14. a4
{[%clk 0:03:02.2]} 14... Ne7 {[%clk 0:02:50.9]} 15. Ra3 {[%clk 0:03:02.9]} 15...
e5 {[%clk 0:02:48.5]} 16. c4 {[%clk 0:03:01]} 16... e4 {[%clk 0:02:48.6]} 17.
dxe4 {[%clk 0:03:02]} 17... dxe4 {[%clk 0:02:47.4]} 18. Nfd2 {[%clk 0:03:03.3]}
18... Ne5 {[%clk 0:02:43.3]} 19. Nc3 {[%clk 0:03:04.2]} 19... Rd8 {[%clk
0:02:43.3]} 20. Qc1 {[%clk 0:03:03.4]} 20... f5 {[%clk 0:02:34.4]} 21. Nd5
{[%clk 0:03:03.1]} 21... Nxd5 {[%clk 0:02:32.3]} 22. cxd5 {[%clk 0:03:05]} 22...
Rxd5 {[%clk 0:02:33.8]} 23. Nc4 {[%clk 0:03:01.5]} 23... Nd7 {[%clk 0:02:28.9]}
24. a5 {[%clk 0:02:57.6]} 24... Bf6 {[%clk 0:02:20.5]} 25. b6 {[%clk 0:02:52.3]}
25... a6 {[%clk 0:02:20.8]} 26. Qc2 {[%clk 0:02:53.5]} 26... f4 {[%clk
0:02:19.5]} 27. Qa2 {[%clk 0:02:51.7]} 27... f3 {[%clk 0:02:13.1]} 28. Bd1
{[%clk 0:02:50.2]} 28... Bf7 {[%clk 0:02:10]} 29. Bb3 {[%clk 0:02:50.9]} 29...
Bg6 {[%clk 0:02:01.9]} 30. Ba4 {[%clk 0:02:48.6]} 30... Ke7 {[%clk 0:01:51.7]}
31. Nd2 {[%clk 0:02:46.6]} 31... Qg5 {[%clk 0:01:46.2]} 32. Qc4 {[%clk
0:02:45.1]} 32... Re5 {[%clk 0:01:27.7]} 33. Rf1 {[%clk 0:02:37.2]} 33... Bf7
{[%clk 0:01:28]} 34. Qc1 {[%clk 0:02:30.3]} 34... Nf8 {[%clk 0:01:22.3]} 35. Qb1
{[%clk 0:02:25.1]} 35... Qf5 {[%clk 0:01:19.3]} 36. Bc6 {[%clk 0:02:22.6]} 36...
Qc8 {[%clk 0:01:13.6]} 37. Bxe4 {[%clk 0:02:23]} 37... Ne6 {[%clk 0:01:14.8]}
38. Nxf3 {[%clk 0:02:22.6]} 38... Rh5 {[%clk 0:01:11.4]} 39. Rg1 {[%clk
0:02:23.6]} 39... c4 {[%clk 0:01:09.8]} 40. Qb4+ {[%clk 0:02:19.3]} 40... Ke8
{[%clk 0:01:11.2]} 41. Rc3 {[%clk 0:02:18.4]} 41... Bxc3+ {[%clk 0:01:06.3]} 42.
Qxc3 {[%clk 0:02:20.3]} 42... Rb5 {[%clk 0:01:03.7]} 43. Ne5 {[%clk 0:02:14.6]}
43... Rb3 {[%clk 0:01:02.1]} 44. Qxc4 {[%clk 0:02:13.8]} 44... Qxc4 {[%clk
0:00:59.8]} 45. Nxc4 {[%clk 0:02:15.7]} 45... Rb4 {[%clk 0:01:01.3]} 46. Nd6+
{[%clk 0:02:16.1]} 46... Ke7 {[%clk 0:01:02.1]} 47. Nxf7 {[%clk 0:02:15.6]}
47... Rxe4 {[%clk 0:01:00.3]} 48. Ng5 {[%clk 0:02:16.8]} 48... Ra4 {[%clk
0:00:58.8]} 49. Ke2 {[%clk 0:02:14.9]} 49... Nc5 {[%clk 0:00:50.8]} 50. Nxh7
{[%clk 0:02:16.1]} 50... Rxa5 {[%clk 0:00:52.4]} 51. Rg7+ {[%clk 0:02:17.6]}
51... Ke6 {[%clk 0:00:53.3]} 52. h4 {[%clk 0:02:19.1]} 52... Ra2+ {[%clk
0:00:54.6]} 53. Kf3 {[%clk 0:02:19.8]} 53... a5 {[%clk 0:00:54]} 54. h5 {[%clk
0:02:21.2]} 54... Nd3 {[%clk 0:00:55.4]} 55. Rxb7 {[%clk 0:02:20.6]} 55... Rxf2+
{[%clk 0:00:56.6]} 56. Kg3 {[%clk 0:02:22.1]} 56... Re2 {[%clk 0:00:53.6]} 57.
Ng5+ {[%clk 0:02:22]} 57... Kf5 {[%clk 0:00:55.1]} 58. Nf3 {[%clk 0:02:21.3]}
58... Rxe3 {[%clk 0:00:54.5]} 59. Rf7+ {[%clk 0:02:22.4]} 59... Ke6 {[%clk
0:00:54.4]} 60. b7 {[%clk 0:02:23.5]} 60... Kxf7 {[%clk 0:00:47]} 61. b8=Q
{[%clk 0:02:19.1]} 1-0

[Event "*** Titled Tuesday 3|2 Blitz"]
[Site "Chess.com"]
[Date "2016.07.05"]
[Round "6"]
[White "GianmarcoVaR"]
[Black "Indianlad"]
[Result "1-0"]
[WhiteElo "2421"]
[BlackElo "2557"]
[TimeControl "180+2"]
[EndTime "18:14:08 PDT"]
[Termination "GianmarcoVaR won by resignation"]

1. d4 {[%clk 0:03:01.9]} 1... Nf6 {[%clk 0:03:01.4]} 2. Nf3 {[%clk 0:02:47]}
2... d5 {[%clk 0:02:59.8]} 3. c4 {[%clk 0:02:46.1]} 3... c6 {[%clk 0:03:01.2]}
4. e3 {[%clk 0:02:47.4]} 4... Bf5 {[%clk 0:03:00.8]} 5. Nc3 {[%clk 0:02:48.8]}
5... e6 {[%clk 0:03:01.9]} 6. Nh4 {[%clk 0:02:50]} 6... Bg6 {[%clk 0:03:02.5]}
7. Be2 {[%clk 0:02:51]} 7... Nbd7 {[%clk 0:03:00.9]} 8. Qb3 {[%clk 0:02:48]}
8... Qc7 {[%clk 0:02:56.5]} 9. Bd2 {[%clk 0:02:39.9]} 9... Bd6 {[%clk
0:02:57.8]} 10. Nxg6 {[%clk 0:02:35]} 10... hxg6 {[%clk 0:02:58.3]} 11. h3
{[%clk 0:02:35.9]} 11... a6 {[%clk 0:02:52]} 12. Bd3 {[%clk 0:02:00.6]} 12...
dxc4 {[%clk 0:02:50.6]} 13. Bxc4 {[%clk 0:01:57.4]} 13... b5 {[%clk 0:02:52.1]}
14. Be2 {[%clk 0:01:57.4]} 14... c5 {[%clk 0:02:52.6]} 15. Bf3 {[%clk
0:01:55.4]} 15... c4 {[%clk 0:02:52.1]} 16. Qc2 {[%clk 0:01:54.8]} 16... Rc8
{[%clk 0:02:53.6]} 17. e4 {[%clk 0:01:49.1]} 17... e5 {[%clk 0:02:53.6]} 18. d5
{[%clk 0:01:44.5]} 18... Nc5 {[%clk 0:02:54.6]} 19. O-O {[%clk 0:01:45]} 19...
O-O {[%clk 0:02:55]} 20. Be3 {[%clk 0:01:31.1]} 20... Nd3 {[%clk 0:02:54.6]} 21.
Be2 {[%clk 0:01:26.8]} 21... Nf4 {[%clk 0:02:55.9]} 22. Bxf4 {[%clk 0:01:26.3]}
22... exf4 {[%clk 0:02:56.3]} 23. Rac1 {[%clk 0:01:24.4]} 23... g5 {[%clk
0:02:55.3]} 24. a4 {[%clk 0:01:17.2]} 24... Qb8 {[%clk 0:02:46.2]} 25. axb5
{[%clk 0:01:15.1]} 25... axb5 {[%clk 0:02:48.1]} 26. Bf3 {[%clk 0:01:04.3]}
26... Be5 {[%clk 0:02:49.4]} 27. Ne2 {[%clk 0:01:05]} 27... b4 {[%clk
0:02:50.4]} 28. Rfd1 {[%clk 0:01:03]} 28... Rc5 {[%clk 0:02:51]} 29. Nd4 {[%clk
0:01:03.3]} 29... Bxd4 {[%clk 0:02:33.4]} 30. Rxd4 {[%clk 0:01:03.6]} 30... c3
{[%clk 0:02:33.8]} 31. Qb3 {[%clk 0:01:01.4]} 31... Qe5 {[%clk 0:01:43.3]} 32.
Rxb4 {[%clk 0:01:00.2]} 32... Rfc8 {[%clk 0:01:44.9]} 33. bxc3 {[%clk 0:00:54]}
33... Rxc3 {[%clk 0:01:45.6]} 34. Rxc3 {[%clk 0:00:55]} 34... Rxc3 {[%clk
0:01:47.5]} 35. Qb2 {[%clk 0:00:55.5]} 35... Nd7 {[%clk 0:01:06.5]} 36. Bg4
{[%clk 0:00:56.6]} 36... Nc5 {[%clk 0:00:48.7]} 37. Rc4 {[%clk 0:00:57.7]} 37...
Na4 {[%clk 0:00:32.9]} 38. Rxa4 {[%clk 0:00:57.5]} 38... Qc7 {[%clk 0:00:34.5]}
39. Ra8+ {[%clk 0:00:54.7]} 39... Kh7 {[%clk 0:00:35.6]} 40. Rc8 {[%clk
0:00:55.7]} 40... Rc1+ {[%clk 0:00:35.7]} 41. Qxc1 {[%clk 0:00:55.7]} 1-0

[Event "*** Titled Tuesday 3|2 Blitz"]
[Site "Chess.com"]
[Date "2016.07.05"]
[Round "6"]
[White "bilelou"]
[Black "RobertoJBM"]
[Result "0-1"]
[WhiteElo "2280"]
[BlackElo "2334"]
[TimeControl "180+2"]
[EndTime "18:14:25 PDT"]
[Termination "RobertoJBM won by resignation"]

1. d4 {[%clk 0:03:01.9]} 1... d5 {[%clk 0:03:00.3]} 2. c4 {[%clk 0:03:03.4]}
2... c6 {[%clk 0:03:01.6]} 3. Nf3 {[%clk 0:03:00.2]} 3... Nf6 {[%clk 0:03:02.3]}
4. e3 {[%clk 0:02:57.9]} 4... Bf5 {[%clk 0:03:02.5]} 5. Nc3 {[%clk 0:02:42.7]}
5... e6 {[%clk 0:03:02.1]} 6. Nh4 {[%clk 0:02:43.1]} 6... Bg6 {[%clk 0:02:53.2]}
7. h3 {[%clk 0:02:42.4]} 7... Nbd7 {[%clk 0:02:42.7]} 8. g4 {[%clk 0:02:42.8]}
8... Ne4 {[%clk 0:02:38.7]} 9. Nxg6 {[%clk 0:02:43]} 9... Nxc3 {[%clk
0:02:39.6]} 10. bxc3 {[%clk 0:02:41]} 10... hxg6 {[%clk 0:02:40.3]} 11. Qb3
{[%clk 0:02:39.9]} 11... Qb6 {[%clk 0:02:40.4]} 12. Bg2 {[%clk 0:02:33.1]} 12...
Qxb3 {[%clk 0:02:35.4]} 13. axb3 {[%clk 0:02:33.1]} 13... a6 {[%clk 0:02:33.5]}
14. Ke2 {[%clk 0:02:33.5]} 14... Be7 {[%clk 0:02:29.4]} 15. c5 {[%clk
0:02:34.9]} 15... f5 {[%clk 0:02:25.9]} 16. b4 {[%clk 0:02:35.8]} 16... Kf7
{[%clk 0:02:26]} 17. f4 {[%clk 0:02:36.2]} 17... fxg4 {[%clk 0:02:22.3]} 18.
hxg4 {[%clk 0:02:36.6]} 18... Rxh1 {[%clk 0:02:24.2]} 19. Bxh1 {[%clk
0:02:38.1]} 19... Rh8 {[%clk 0:02:25.8]} 20. Bg2 {[%clk 0:02:33.3]} 20... g5
{[%clk 0:02:25.4]} 21. Bd2 {[%clk 0:02:33.1]} 21... Nf6 {[%clk 0:02:15.4]} 22.
fxg5 {[%clk 0:02:25.5]} 22... Nxg4 {[%clk 0:02:13.1]} 23. e4 {[%clk 0:02:16.6]}
23... Rh2 {[%clk 0:02:09.3]} 24. Rg1 {[%clk 0:02:13.2]} 24... dxe4 {[%clk
0:02:07.1]} 25. Bf4 {[%clk 0:02:11.5]} 25... Rh4 {[%clk 0:01:43.3]} 26. Bg3
{[%clk 0:02:01.8]} 26... Bxg5 {[%clk 0:01:28.8]} 27. Bxh4 {[%clk 0:01:59.5]}
27... Bxh4 {[%clk 0:01:30.7]} 28. Bxe4 {[%clk 0:02:01.1]} 28... Nf6 {[%clk
0:01:29]} 29. Bf3 {[%clk 0:02:00.8]} 29... g5 {[%clk 0:01:28.7]} 30. Kd3 {[%clk
0:02:00.5]} 30... Kg6 {[%clk 0:01:26.7]} 31. Rg2 {[%clk 0:01:59.2]} 31... Kf5
{[%clk 0:01:25.7]} 32. c4 {[%clk 0:01:57.3]} 32... g4 {[%clk 0:01:23.6]} 33. Bd1
{[%clk 0:01:54.8]} 33... g3 {[%clk 0:01:13]} 34. Ke3 {[%clk 0:01:55.2]} 34...
Ng4+ {[%clk 0:01:03.1]} 35. Kf3 {[%clk 0:01:50.5]} 35... Nh2+ {[%clk 0:00:57.6]}
36. Ke2 {[%clk 0:01:50.6]} 36... Ke4 {[%clk 0:00:54.2]} 37. b5 {[%clk
0:01:46.6]} 37... axb5 {[%clk 0:00:53.1]} 38. cxb5 {[%clk 0:01:47.2]} 38... cxb5
{[%clk 0:00:54.5]} 39. Bb3 {[%clk 0:01:47.4]} 39... Kxd4 {[%clk 0:00:52.9]} 40.
Bxe6 {[%clk 0:01:48.9]} 40... Kxc5 {[%clk 0:00:54.4]} 41. Ke3 {[%clk 0:01:49.9]}
41... b4 {[%clk 0:00:50.9]} 42. Kd3 {[%clk 0:01:50]} 42... Nf3 {[%clk
0:00:48.3]} 43. Ke3 {[%clk 0:01:42.9]} 43... Nd4 {[%clk 0:00:47.5]} 44. Bf5
{[%clk 0:01:43.8]} 44... Nxf5+ {[%clk 0:00:48]} 45. Kf4 {[%clk 0:01:44.6]} 45...
Nd4 {[%clk 0:00:49.4]} 46. Kg4 {[%clk 0:01:45.7]} 46... Be7 {[%clk 0:00:46.2]}
47. Kxg3 {[%clk 0:01:47.2]} 47... Kc4 {[%clk 0:00:45]} 48. Kf4 {[%clk
0:01:48.8]} 48... Bc5 {[%clk 0:00:45.2]} 49. Ke4 {[%clk 0:01:49.5]} 49... b3
{[%clk 0:00:45.9]} 50. Ke5 {[%clk 0:01:49.6]} 50... b6 {[%clk 0:00:43.1]} 51.
Ke4 {[%clk 0:01:43.9]} 51... Nc2 {[%clk 0:00:42.5]} 52. Ke5 {[%clk 0:01:44.2]}
52... Kc3 {[%clk 0:00:40.7]} 53. Kd5 {[%clk 0:01:45]} 53... Ne3+ {[%clk
0:00:40.2]} 0-1